bitfinex/quotes_ETHUSD_20241101
["timestamp","ask_amount","ask_price","bid_price","bid_amount"]
[1730459889765,7.92601,2523.4,2523.2,1.81169528]
[1730459891890,3.963,2523.4,2523.2,1.81169528]
[1730459893462,7.926,2523.4,2523.2,1.81169528]
[1730459894157,3.963,2523.4,2523.2,1.81169528]
[1730459894790,3.96306,2523.3,2523.1,0.7825]
[1730459895145,3.96306,2523.3,2520.2,4.77383251]
[1730459895146,4.49507,2523.1,2522.8,1.81169528]
[1730459896292,3.96391,2522.8,2522.5,0.7794]
[1730459896664,0.5316,2522.9,2522.6,1.81169528]
[1730459896880,4.4953,2522.9,2522.6,1.81169528]
[1730459897083,3.9637,2522.9,2522.6,1.81169528]
[1730459897753,3.96391,2522.8,2522.6,1.81169528]
[1730459899454,3.96393,2522.8,2522.6,1.81169528]
[1730459899699,3.964,2522.7,2522.6,1.81169528]
[1730459900585,3.964,2522.7,2522.4,1.81169528]
[1730459900971,4.49556,2522.8,2522.4,1.81169528]
[1730459901793,4.49556,2522.8,2522.6,1.81169528]
[1730459902158,3.96396,2522.8,2522.6,1.81169528]
[1730459904610,3.964,2522.7,2522.6,1.81169528]
[1730459904909,0.5316,2523.0,2522.6,1.81169528]
[1730459905112,3.964,2522.7,2522.6,1.81169528]
[1730459905269,3.96416,2522.6,2522.4,1.81169528]
[1730459905993,3.96406,2522.7,2522.4,1.81169528]
[1730459909885,7.92817,2522.7,2522.4,1.81169528]
[1730459910087,3.96427,2522.6,2522.1,3.96493]
[1730459910404,3.96427,2522.6,2522.0,2.64009528]
[1730459910405,3.96449,2522.4,2522.0,5.77679528]
[1730459910786,3.0,2522.4,2522.2,1.81169528]
[1730459910990,3.0,2522.6,2522.3,4.79295]
[1730459911317,3.0,2522.7,2522.4,1.81169528]
[1730459911526,3.0,2522.7,2522.6,1.81169528]
[1730459911729,3.96385,2522.8,2522.6,1.81169528]
[1730459912020,7.92783,2522.8,2522.6,1.81169528]
[1730459912583,3.96385,2522.8,2522.6,1.81169528]
[1730459912783,7.92781,2522.8,2522.6,1.81169528]
[1730459913419,3.964,2522.7,2522.6,1.81169528]
[1730459914686,3.964,2522.7,2522.4,1.81169528]
[1730459914687,3.96416,2522.6,2522.4,1.81169528]
[1730459914885,3.96416,2522.6,2522.3,0.8284]
[1730459915995,3.96434,2522.5,2522.3,0.8284]
[1730459916199,3.96465,2522.3,2522.0,2.59019528]
[1730459919842,3.96465,2522.3,2522.0,1.81169528]
[1730459920043,3.96481,2522.2,2522.0,1.81169528]
[1730459920238,3.96502,2522.1,2521.8,2.59399528]
[1730459920401,3.96481,2522.2,2522.0,1.81169528]
[1730459923014,4.49578,2522.6,2522.0,1.81169528]
[1730459923220,7.92977,2522.2,2522.0,1.81169528]
[1730459924237,3.96484,2522.2,2522.0,1.81169528]
[1730459924534,3.96494,2522.1,2522.0,1.81169528]
[1730459924708,7.92975,2522.2,2522.0,1.81169528]
[1730459924901,3.96484,2522.2,2522.0,1.81169528]
[1730459925238,3.96494,2522.1,2522.0,1.81169528]
[1730459928338,3.96494,2522.1,2521.8,1.81169528]
[1730459930010,4.4968,2522.0,2521.8,1.81169528]
[1730459931117,3.9652,2522.0,2521.8,1.81169528]
[1730459935750,3.9652,2522.0,2521.9,1.81169528]
[1730459935926,6.9652,2522.0,2521.9,1.81169528]
[1730459936261,6.9652,2522.0,2521.8,1.81169528]
[1730459937119,6.9652,2522.0,2521.9,1.81169528]
[1730459939857,3.96498,2522.1,2521.9,1.81169528]
[1730459940173,3.0,2522.0,2521.6,2.64797314]
[1730459940330,6.96512,2522.0,2521.6,3.30935845]
[1730459940518,6.96512,2522.0,2521.6,6.61369314]
[1730459940855,6.96512,2522.0,2521.6,0.83627786]
[1730459941152,6.96512,2522.0,2521.6,4.80192786]
[1730459941474,11.41415,2522.7,2522.1,3.96481]
[1730459941475,4.49592,2522.5,2522.1,3.96481]
[1730459941616,3.96409,2522.7,2522.4,1.81169528]
[1730459941815,3.96423,2522.6,2522.4,1.81169528]
[1730459942768,0.5316,2522.8,2522.4,1.81169528]
[1730459942932,3.96423,2522.6,2522.4,1.81169528]
[1730459943321,3.96401,2522.7,2522.4,1.81169528]
[1730459943518,3.96427,2522.6,2522.4,1.81169528]
[1730459943755,3.96427,2522.6,2522.2,2.60429528]
[1730459944074,3.96432,2522.5,2522.2,2.60429528]
[1730459944222,3.96417,2522.6,2522.4,1.81169528]
[1730459944627,3.96432,2522.5,2522.4,1.81169528]
[1730459946153,3.96419,2522.6,2522.4,1.81169528]
[1730459947137,3.96432,2522.5,2522.4,1.81169528]
[1730459947714,3.96419,2522.6,2522.4,1.81169528]
[1730459947952,4.49566,2522.7,2522.4,1.81169528]
[1730459948267,6.96406,2522.7,2522.6,1.81169528]
[1730459949574,3.96406,2522.7,2522.6,1.81169528]
[1730459951859,3.96393,2522.8,2522.6,1.81169528]
[1730459952077,7.92755,2522.9,2522.6,1.81169528]
[1730459952394,3.96317,2523.3,2522.9,0.8275]
[1730459952590,3.97,2523.5,2522.9,0.8275]
[1730459952591,3.96323,2523.2,2523.1,1.81169528]
[1730459952881,3.96323,2523.2,2522.9,2.63919528]
[1730459952882,3.96343,2523.1,2522.9,2.63919528]
[1730459954293,3.96353,2523.0,2522.7,2.63519528]
[1730459954446,3.96375,2522.9,2522.7,2.63519528]
[1730459955086,3.96375,2522.9,2522.7,1.81169528]
[1730459955950,3.96303,2523.4,2522.8,4.77024]
[1730459956170,3.96303,2523.4,2523.2,1.81169528]
[1730459956490,0.5316,2523.5,2523.2,1.81169528]
[1730459956491,3.96306,2523.3,2523.2,1.81169528]
[1730459956775,3.96306,2523.3,2523.0,1.81169528]
[1730459957288,3.963,2523.4,2523.0,1.81169528]
[1730459957445,3.96326,2523.2,2523.0,1.81169528]
[1730459957879,3.96337,2523.1,2522.8,2.61809528]
[1730459958181,3.96326,2523.2,2522.8,2.61809528]
[1730459958387,3.96308,2523.3,2523.0,1.81169528]
[1730459959592,7.92609,2523.4,2523.0,1.81169528]
[1730459960060,3.96308,2523.3,2523.0,1.81169528]
[1730459967086,0.5316,2523.5,2522.8,1.81169528]
[1730459967087,4.495,2523.1,2522.8,1.81169528]
[1730459967456,3.9636,2523.0,2522.6,6.55326528]
[1730459970985,0.5316,2523.1,2522.4,2.62239528]
[1730459971163,3.96379,2522.9,2522.4,4.77509]
[1730459971363,3.96379,2522.9,2522.4,6.58678528]
[1730459971976,3.5316,2523.1,2522.4,6.58678528]
[1730459972178,3.5316,2523.1,2522.5,3.96427]
[1730459972179,3.96371,2522.9,2522.5,3.96427]
[1730459972383,3.96371,2522.9,2522.6,1.81169528]
[1730459972695,3.0,2522.9,2522.6,1.81169528]
[1730459974014,0.5316,2523.3,2522.8,1.81169528]
[1730459974322,3.96346,2523.1,2522.8,1.81169528]
[1730459975350,7.92665,2523.2,2522.8,1.81169528]
[1730459975617,3.96338,2523.1,2522.8,1.81169528]
[1730459976809,3.96338,2523.1,2522.8,1.81169528]
[1730459977723,3.96324,2523.2,2522.8,1.81169528]
[1730459977923,7.92656,2523.2,2522.8,1.81169528]
[1730459978482,3.96338,2523.1,2522.8,1.81169528]
[1730459978998,3.96323,2523.2,2522.8,1.81169528]
[1730459979201,7.92655,2523.2,2522.8,1.81169528]
[1730459979427,3.96323,2523.2,2523.0,1.81169528]
[1730459982937,7.92658,2523.2,2523.0,1.81169528]
[1730459983308,3.96323,2523.2,2523.0,1.81169528]
[1730459983601,7.92653,2523.2,2523.0,1.81169528]
[1730459984993,3.96353,2523.0,2522.9,0.8175]
[1730459985199,3.96339,2523.1,2522.5,4.78772]
[1730459985418,3.96371,2522.9,2522.6,1.81169528]
[1730459986641,3.96356,2523.0,2522.6,5.77585528]
[1730459986949,3.96356,2523.0,2522.6,1.81169528]
[1730459987734,3.96356,2523.0,2522.6,5.77583528]
[1730459988650,3.96356,2523.0,2522.6,1.81169528]
[1730459989131,3.96401,2522.7,2522.4,1.81169528]
[1730459989335,3.96399,2522.8,2522.4,1.81169528]
[1730459989522,7.92793,2522.8,2522.4,1.81169528]
[1730459989721,7.92793,2522.8,2522.6,1.81169528]
[1730459990140,3.96394,2522.8,2522.6,1.81169528]
[1730459990310,3.96372,2522.9,2522.6,2.61159528]
[1730459990506,3.96372,2522.9,2522.8,1.81169528]
[1730459990940,6.96372,2522.9,2522.8,1.81169528]
[1730459993545,3.96399,2522.8,2522.6,2.61159528]
[1730459994215,3.964,2522.7,2522.6,2.61159528]
[1730459994928,3.96399,2522.8,2522.6,2.61159528]
[1730459995152,3.96369,2522.9,2522.6,2.61159528]
[1730459995813,3.96387,2522.8,2522.6,2.61159528]
[1730459998253,3.964,2522.7,2522.6,1.81169528]
[1730459999225,3.964,2522.7,2522.4,1.81169528]
[1730459999622,3.96417,2522.6,2522.4,1.81169528]
[1730459999918,7.92846,2522.6,2522.4,1.81169528]
[1730460000256,3.96453,2522.4,2522.2,1.81169528]
[1730460001029,3.96463,2522.3,2522.2,1.81169528]
[1730460001230,3.96488,2522.2,2522.0,2.60119528]
[1730460001421,3.96494,2522.1,2522.0,1.81169528]
[1730460001620,3.5316,2522.5,2522.0,1.81169528]
[1730460001621,3.96473,2522.3,2522.0,1.81169528]
[1730460001917,3.5316,2522.5,2522.0,1.81169528]
[1730460002121,7.49606,2522.5,2522.0,1.81169528]
[1730460002348,3.96465,2522.3,2522.1,1.81169528]
[1730460002866,3.96479,2522.2,2522.1,1.81169528]
[1730460003149,3.96465,2522.3,2522.1,1.81169528]
[1730460004157,3.96479,2522.2,2522.1,1.81169528]
[1730460004328,3.96465,2522.3,2522.1,1.81169528]
[1730460004534,3.96479,2522.2,2522.1,1.81169528]
[1730460004875,3.96466,2522.3,2522.1,1.81169528]
[1730460005037,3.5316,2522.5,2522.1,1.81169528]
[1730460005224,3.96423,2522.6,2522.4,1.81169528]
[1730460005490,3.96381,2522.9,2522.4,5.77608528]
[1730460005673,3.96378,2522.9,2522.6,1.81169528]
[1730460006013,7.92762,2522.9,2522.6,1.81169528]
[1730460006184,3.96378,2522.9,2522.6,1.81169528]
[1730460006371,3.96387,2522.8,2522.6,1.81169528]
[1730460006972,0.5316,2523.0,2522.6,1.81169528]
[1730460007275,0.5316,2523.0,2522.3,3.96461]
[1730460007276,3.964,2522.7,2522.4,1.81169528]
[1730460007477,3.96429,2522.6,2522.4,1.81169528]
[1730460008278,3.96432,2522.5,2522.4,1.81169528]
[1730460008793,0.5316,2522.7,2522.4,1.81169528]
[1730460009021,3.96394,2522.8,2522.4,1.81169528]
[1730460009911,3.96401,2522.7,2522.4,1.81169528]
[1730460010101,3.96423,2522.6,2522.4,1.81169528]
[1730460010436,3.96401,2522.7,2522.4,1.81169528]
[1730460011503,7.92813,2522.7,2522.4,1.81169528]
[1730460011709,3.96401,2522.7,2522.4,1.81169528]
[1730460012357,3.96392,2522.8,2522.6,1.81169528]
[1730460012643,3.96375,2522.9,2522.7,0.8037]
[1730460013537,7.92756,2522.9,2522.7,0.8037]
[1730460014441,3.96384,2522.8,2522.7,0.8037]
[1730460015138,3.96372,2522.9,2522.7,0.8037]
[1730460015501,3.96351,2523.1,2522.7,0.8037]
[1730460015737,3.96363,2523.0,2522.8,1.81169528]
[1730460016107,6.96332,2523.2,2522.9,0.7862]
[1730460016733,10.92665,2523.2,2522.9,0.7862]
[1730460017345,3.96332,2523.2,2522.9,0.7862]
[1730460017531,6.96318,2523.3,2523.0,1.81169528]
[1730460017848,3.96332,2523.2,2523.0,1.81169528]
[1730460019816,7.92668,2523.2,2523.0,1.81169528]
[1730460020036,3.96332,2523.2,2523.0,1.81169528]
[1730460021347,7.92668,2523.2,2523.0,1.81169528]
[1730460021548,3.96338,2523.1,2522.9,0.7862]
[1730460022721,3.96338,2523.1,2522.8,1.81169528]
[1730460025641,3.96331,2523.2,2522.8,5.77553528]
[1730460025847,3.96343,2523.1,2522.8,1.81169528]
[1730460026668,3.0,2523.3,2522.8,1.81169528]
[1730460026669,3.96369,2522.9,2522.8,1.81169528]
[1730460026869,3.96355,2523.0,2522.7,0.8118]
[1730460027034,7.92721,2523.0,2522.7,0.8118]
[1730460027232,3.96369,2522.9,2522.7,0.8118]
[1730460028566,3.96395,2522.8,2522.5,0.808]
[1730460029889,3.96395,2522.8,2522.6,1.81169528]
[1730460030240,3.96376,2522.9,2522.6,1.81169528]
[1730460030645,3.96363,2523.0,2522.8,1.81169528]
[1730460031573,3.96369,2522.9,2522.8,1.81169528]
[1730460031878,3.96369,2522.9,2522.8,0.08214199]
[1730460032081,3.96363,2523.0,2522.8,0.08214199]
[1730460032082,7.92728,2523.0,2522.8,0.08214199]
[1730460032239,7.92728,2523.0,2522.6,1.81169528]
[1730460032440,3.96363,2523.0,2522.7,0.08191918]
[1730460032653,3.96357,2523.0,2522.7,0.08191918]
[1730460035848,3.96384,2522.8,2522.7,0.08191918]
[1730460039644,3.96371,2522.9,2522.7,0.08191918]
[1730460041864,3.96384,2522.8,2522.7,0.08191918]
[1730460044381,3.96348,2523.1,2522.7,0.90261918]
[1730460044562,0.5316,2523.5,2522.7,0.90261918]
[1730460044563,3.96286,2523.5,2523.0,1.81169528]
[1730460044887,3.96293,2523.4,2523.2,1.81169528]
[1730460045105,3.96293,2523.4,2523.3,0.08157444]
[1730460045461,7.9816,2523.8,2523.2,1.81169528]
[1730460045774,3.96259,2523.7,2523.6,1.81169528]
[1730460046179,3.96259,2523.7,2523.6,1.89307952]
[1730460046653,0.5316,2524.0,2523.6,1.89307952]
[1730460046859,3.96218,2523.9,2523.6,1.89307952]
[1730460047174,7.92443,2523.9,2523.6,1.89307952]
[1730460047755,7.92439,2523.9,2523.6,1.89307952]
[1730460047956,3.96218,2523.9,2523.6,1.89307952]
[1730460048578,7.92441,2523.9,2523.6,1.89307952]
[1730460048787,3.96218,2523.9,2523.6,1.89307952]
[1730460050094,7.92438,2523.9,2523.6,1.89307952]
[1730460050301,3.96218,2523.9,2523.6,1.89307952]
[1730460051486,7.92439,2523.9,2523.6,1.89307952]
[1730460052089,3.96218,2523.9,2523.6,0.08138424]
[1730460052251,3.96227,2523.8,2523.6,0.08138424]
[1730460053257,3.96243,2523.7,2523.6,0.08138424]
[1730460053456,3.96227,2523.8,2523.6,0.08138424]
[1730460054159,3.96243,2523.7,2523.6,0.08138424]
[1730460054893,3.9623,2523.8,2523.6,0.08138424]
[1730460055053,3.96243,2523.7,2523.6,0.08138424]
[1730460055391,4.49375,2523.9,2523.6,0.08138424]
[1730460055392,3.96229,2523.8,2523.6,0.08138424]
[1730460060380,3.96195,2524.1,2523.6,6.51839147]
[1730460060690,3.96165,2524.2,2523.8,5.77389528]
[1730460060894,3.96142,2524.4,2524.0,2.64109528]
[1730460061201,3.96142,2524.4,2524.2,1.81169528]
[1730460061698,3.96142,2524.4,2524.3,0.08050903]
[1730460064781,3.96142,2524.4,2524.0,2.66694693]
[1730460065014,3.96142,2524.4,2524.3,0.08050903]
[1730460065172,3.96142,2524.4,2524.0,3.32985262]
[1730460065714,3.96142,2524.4,2524.1,0.08063575]
[1730460066074,3.96151,2524.3,2524.1,0.08063575]
[1730460068313,3.96142,2524.4,2524.1,0.08063575]
[1730460068516,0.5316,2524.7,2524.1,4.77968759]
[1730460068823,3.96127,2524.5,2524.1,4.77968759]
[1730460068995,3.96134,2524.4,2524.1,0.81788759]
[1730460069717,3.9611,2524.6,2524.2,5.77323528]
[1730460069926,3.96119,2524.5,2524.3,1.51042132]
[1730460070121,3.96119,2524.5,2524.3,0.85130903]
[1730460070422,3.96119,2524.5,2524.3,0.08050903]
[1730460070820,3.96133,2524.4,2524.3,0.08050903]
[1730460071117,3.96133,2524.4,2524.1,0.7512]
[1730460071431,3.96133,2524.4,2524.2,0.08034521]
[1730460074734,3.96133,2524.4,2524.0,5.79949693]
[1730460075022,3.96133,2524.4,2524.1,0.08040857]
[1730460079135,3.96119,2524.5,2524.2,1.81169528]
[1730460079419,3.96133,2524.4,2524.2,2.63929528]
[1730460079629,3.96133,2524.4,2524.3,0.08028185]
[1730460080725,3.96151,2524.3,2524.0,3.28874662]
[1730460080933,3.96151,2524.3,2524.1,0.80545761]
[1730460081232,3.96165,2524.2,2524.1,0.80545761]
[1730460081526,7.49325,2524.2,2524.1,0.08037795]
[1730460081728,3.9618,2524.1,2524.0,0.02585165]
[1730460081891,3.9618,2524.1,2524.0,0.10629297]
[1730460082797,5.77349528,2524.1,2524.0,0.10629297]
[1730460083004,9.30509528,2524.1,2524.0,0.10629297]
[1730460083319,9.30509528,2524.1,2524.0,0.02585165]
[1730460083320,11.11679056,2524.1,2524.0,0.02585165]
[1730460083629,9.30509528,2524.1,2524.0,0.02585165]
[1730460089002,4.4934,2524.1,2524.0,0.02585165]
[1730460089347,3.9618,2524.1,2524.0,0.02585165]
[1730460089718,3.9618,2524.1,2524.0,0.10120623]
[1730460089937,3.96165,2524.2,2524.0,0.10120623]
[1730460090149,3.96151,2524.3,2524.0,1.91290151]
[1730460090303,3.96165,2524.2,2524.1,0.8282]
[1730460090737,3.96165,2524.2,2524.1,0.90349122]
[1730460091102,3.9613,2524.5,2524.1,0.90349122]
[1730460091303,3.96103,2524.6,2524.2,1.81169528]
[1730460091644,3.96103,2524.6,2524.3,0.0751645]
[1730460091851,3.96125,2524.5,2524.3,0.0751645]
[1730460092150,3.96125,2524.5,2524.3,0.34667048]
[1730460092354,3.96111,2524.6,2524.4,0.7508]
[1730460092516,3.96111,2524.6,2524.5,0.0750378]
[1730460093242,3.96081,2524.8,2524.5,0.0750378]
[1730460093950,3.96098,2524.7,2524.5,0.0750378]
[1730460094555,3.96082,2524.8,2524.5,0.58091918]
[1730460094724,3.96087,2524.7,2524.5,0.58091918]
[1730460094926,3.96087,2524.7,2524.5,0.0750378]
[1730460095753,3.96055,2524.9,2524.5,0.0750378]
[1730460095924,3.96077,2524.8,2524.5,0.0750378]
[1730460096116,7.92125,2524.9,2524.5,0.0750378]
[1730460096315,3.96055,2524.9,2524.5,0.0750378]
[1730460096536,7.92119,2524.9,2524.5,0.58090318]
[1730460096737,3.96055,2524.9,2524.5,0.58090318]
[1730460097754,3.96074,2524.8,2524.5,0.58090318]
[1730460098256,3.96055,2524.9,2524.5,0.58090318]
[1730460098434,3.96055,2524.9,2524.6,0.7966]
[1730460098763,3.96055,2524.9,2524.7,0.07456145]
[1730460099257,3.96033,2525.1,2524.7,0.07456145]
[1730460099466,7.92071,2525.1,2524.7,0.07456145]
[1730460099769,3.96033,2525.1,2524.7,0.07456145]
[1730460100129,7.92067,2525.1,2524.7,0.07456145]
[1730460100329,3.0,2525.2,2524.7,4.96531413]
[1730460100530,4.084611,2525.3,2524.7,4.96531413]
[1730460100531,4.084611,2525.3,2524.8,0.7966]
[1730460100758,4.084611,2525.3,2524.9,3.96054]
[1730460100983,4.084611,2525.3,2524.9,4.03497479]
[1730460101334,4.084611,2525.3,2525.0,0.7847]
[1730460101562,4.084611,2525.3,2525.1,0.55622971]
[1730460102229,4.084611,2525.3,2525.1,0.07426223]
[1730460102632,0.124591,2525.3,2525.1,0.07426223]
[1730460102833,4.084531,2525.3,2525.1,0.07426223]
[1730460103099,0.124591,2525.3,2525.1,0.07426223]
[1730460103787,0.124591,2525.3,2525.2,8.45828942]
[1730460103938,0.124591,2525.3,2525.2,9.31154459]
[1730460104141,0.124591,2525.3,2525.2,1.74938012]
[1730460106054,0.124591,2525.3,2525.2,9.34756954]
[1730460108199,0.124591,2525.3,2525.2,9.89756954]
[1730460108555,0.0997,2526.0,2525.7,0.8216]
[1730460108754,4.05859,2526.0,2525.8,0.55178243]
[1730460109259,0.0997,2526.0,2525.8,0.55178243]
[1730460110167,0.0997,2526.0,2525.9,3.95898]
[1730460110392,0.0997,2526.0,2525.9,4.82259816]
[1730460110619,0.0997,2526.0,2525.9,6.11618802]
[1730460112250,0.0997,2526.0,2525.9,9.79239744]
[1730460112651,0.0997,2526.0,2525.9,10.34239744]
[1730460113161,0.0997,2526.0,2525.9,2.15720802]
[1730460113368,0.0997,2526.0,2525.9,4.82259816]
[1730460113865,0.0997,2526.0,2525.9,0.86361816]
[1730460114584,0.0997,2526.0,2525.9,0.07361816]
[1730460114955,0.0997,2526.0,2525.9,7.70880758]
[1730460115896,0.0997,2526.0,2525.9,9.08080758]
[1730460116055,0.0997,2526.0,2525.9,10.43260844]
[1730460117360,0.0997,2526.0,2525.9,2.24741902]
[1730460117575,0.0997,2526.0,2525.9,6.20639902]
[1730460117776,0.0997,2526.0,2525.9,9.88260844]
[1730460118596,0.0997,2526.0,2525.9,10.43260844]
[1730460120152,0.0997,2526.0,2525.9,6.20639902]
[1730460120356,0.0997,2526.0,2525.9,2.24741902]
[1730460120666,0.0997,2526.0,2525.9,0.07361816]
[1730460121192,0.0997,2526.0,2525.7,0.8047]
[1730460121490,4.05853,2526.0,2525.9,0.07285852]
[1730460121652,0.0997,2526.0,2525.8,0.07292179]
[1730460121867,0.0997,2526.0,2525.9,0.07285852]
[1730460124113,0.0997,2526.0,2525.9,4.03183852]
[1730460125100,0.0997,2526.0,2525.9,8.56151865]
[1730460125280,0.0997,2526.0,2525.9,9.03234794]
[1730460125971,0.0997,2526.0,2525.9,5.35613852]
[1730460126176,0.0997,2526.0,2525.9,6.37561659]
[1730460126376,0.0997,2526.0,2525.9,1.86663659]
[1730460126613,0.0997,2526.0,2525.9,1.09233659]
[1730460126812,0.0997,2526.0,2525.9,0.07285852]
[1730460127177,4.05852,2526.0,2525.9,0.07285852]
[1730460127372,3.95906,2525.9,2525.5,3.95954]
[1730460127573,3.95906,2525.9,2525.6,0.07304836]
[1730460128116,4.71462,2526.0,2525.7,3.95916]
[1730460128117,0.0997,2526.0,2525.7,3.95916]
[1730460128323,0.0997,2526.0,2525.7,5.51334084]
[1730460128479,0.0997,2526.0,2525.8,0.07297275]
[1730460128681,3.95898,2525.9,2525.8,0.07297275]
[1730460129186,4.05864,2526.0,2525.5,8.674]
[1730460129409,4.05864,2526.0,2525.6,0.07309932]
[1730460129592,3.95898,2525.9,2525.6,0.07309932]
[1730460130193,3.9592,2525.8,2525.6,0.07309932]
[1730460130426,3.95898,2525.9,2525.5,3.95959]
[1730460130590,3.95898,2525.9,2525.7,0.07306916]
[1730460130933,3.95914,2525.8,2525.7,0.07306916]
[1730460131096,4.05855,2526.0,2525.7,0.07306916]
[1730460131302,4.05855,2526.0,2525.6,3.95944]
[1730460131606,4.05855,2526.0,2525.7,0.07315579]
[1730460132241,8.01751,2526.0,2525.7,0.07315579]
[1730460132529,4.05855,2526.0,2525.5,4.03877415]
[1730460132831,8.01751,2526.0,2525.6,0.79984342]
[1730460133031,8.01748,2526.0,2525.6,0.8730625]
[1730460133195,4.05855,2526.0,2525.6,4.8324825]
[1730460133395,0.0997,2526.0,2525.7,4.03845006]
[1730460133632,0.0997,2526.0,2525.8,3.95912]
[1730460133804,0.0997,2526.0,2525.9,0.791839]
[1730460134236,0.0997,2526.0,2525.9,0.86486823]
[1730460134833,0.0997,2526.0,2525.9,0.07302923]
[1730460135338,0.0997,2526.0,2525.7,0.809]
[1730460135539,0.0997,2526.0,2525.5,3.95947]
[1730460135540,4.71465,2526.0,2525.9,0.07302923]
[1730460136134,3.95898,2525.9,2525.5,4.77067]
[1730460136432,3.95898,2525.9,2525.6,0.07321908]
[1730460136612,3.95898,2525.9,2525.6,0.55760799]
[1730460137215,3.95898,2525.9,2525.6,0.63678782]
[1730460137562,3.9592,2525.8,2525.6,0.07321908]
[1730460137736,3.95898,2525.9,2525.6,0.07321908]
[1730460138362,4.71464,2526.0,2525.6,0.07321908]
[1730460138571,0.0997,2526.0,2525.7,3.95921]
[1730460138860,0.0997,2526.0,2525.8,0.87226842]
[1730460140172,3.95898,2525.9,2525.8,0.87226842]
[1730460140338,3.95898,2525.9,2525.8,0.07309251]
[1730460140716,3.95898,2525.9,2525.5,3.95958]
[1730460140916,3.95898,2525.9,2525.8,0.07309251]
[1730460141089,4.61526,2525.8,2525.4,0.7954]
[1730460141284,0.6561,2525.8,2525.5,4.51429563]
[1730460141615,3.95901,2525.9,2525.5,0.55470563]
[1730460141913,4.05856,2526.0,2525.6,3.95936]
[1730460142419,0.0997,2526.0,2525.7,3.95923]
[1730460142716,0.0997,2526.0,2525.8,4.78112]
[1730460143016,0.0997,2526.0,2525.8,0.822]
[1730460143807,4.05854,2526.0,2525.6,0.7722]
[1730460144008,4.05854,2526.0,2525.3,3.95979]
[1730460144009,0.0997,2526.0,2525.3,3.95979]
[1730460144311,3.9592,2525.8,2525.4,0.48130452]
[1730460144543,3.9592,2525.8,2525.3,4.73199]
[1730460144544,7.63596942,2525.5,2524.6,0.8117]
[1730460144835,7.63596942,2525.5,2524.1,1.63213133]
[1730460144836,4.61649,2525.0,2524.3,4.7731]
[1730460145045,0.6561,2525.0,2524.1,3.96167]
[1730460145344,3.96141,2524.4,2524.3,0.41155351]
[1730460145549,3.96141,2524.4,2524.0,0.83755165]
[1730460145837,3.96141,2524.4,2524.1,0.47995716]
[1730460146399,7.92284,2524.4,2524.1,0.47995716]
[1730460146604,3.96141,2524.4,2524.1,0.47995716]
[1730460146833,3.96141,2524.4,2524.0,0.02585165]
[1730460147144,3.9618,2524.1,2524.0,0.02585165]
[1730460147433,3.9618,2524.1,2524.0,0.0904558]
[1730460147628,3.9618,2524.1,2524.0,0.02585165]
[1730460147825,3.9618,2524.1,2524.0,0.0904558]
[1730460148042,3.9618,2524.1,2524.0,0.02585165]
[1730460148338,0.6561,2524.3,2524.0,0.0904558]
[1730460148536,8.57922,2524.3,2524.0,0.02585165]
[1730460148743,4.61762,2524.3,2524.1,0.06454078]
[1730460148898,3.96165,2524.2,2524.1,0.06454078]
[1730460149328,8.57922,2524.3,2524.1,0.06454078]
[1730460149723,3.96165,2524.2,2524.1,0.06454078]
[1730460150214,0.6561,2524.3,2524.1,0.06454078]
[1730460150803,3.0,2524.4,2524.1,0.86484078]
[1730460151946,3.96128,2524.5,2524.1,0.86484078]
[1730460152144,7.92259,2524.5,2524.1,0.86484078]
[1730460152346,3.96128,2524.5,2524.1,0.86484078]
[1730460152756,3.96126,2524.5,2524.1,0.86484078]
[1730460153113,7.92253,2524.5,2524.1,0.86484078]
[1730460153754,3.96103,2524.6,2524.1,4.82662078]
[1730460153951,3.96103,2524.6,2524.1,5.70806902]
[1730460154154,3.96119,2524.5,2524.1,5.70806902]
[1730460154517,3.96102,2524.6,2524.1,5.70806902]
[1730460155041,3.96122,2524.5,2524.1,5.70806902]
[1730460155250,3.96122,2524.5,2524.1,1.74628902]
[1730460155612,3.96122,2524.5,2524.1,5.70807902]
[1730460156427,7.61699,2524.7,2524.1,5.70807902]
[1730460156629,3.96103,2524.6,2524.1,5.70807902]
[1730460157323,3.96103,2524.6,2524.1,1.74628902]
[1730460157324,3.96121,2524.5,2524.1,1.74628902]
[1730460157540,3.96121,2524.5,2524.1,5.70804902]
[1730460157766,3.6561,2524.7,2524.1,5.70804902]
[1730460157940,7.61707,2524.7,2524.1,5.70804902]
[1730460158123,3.96106,2524.6,2524.1,5.70804902]
[1730460158328,11.57805,2524.7,2524.2,3.96163]
[1730460158551,6.96097,2524.7,2524.2,7.92326]
[1730460158874,4.61672,2524.9,2524.4,3.96124]
[1730460159036,4.6164,2525.1,2524.6,3.96094]
[1730460159237,8.57677,2525.1,2524.6,3.96094]
[1730460159445,3.96039,2525.0,2524.7,0.06459925]
[1730460159833,3.96056,2524.9,2524.5,4.72277]
[1730460160147,3.96049,2525.0,2524.8,0.06453592]
[1730460160355,3.96049,2525.0,2524.5,4.72266]
[1730460160356,7.921,2525.0,2524.5,4.72266]
[1730460160672,3.96049,2525.0,2524.5,4.72266]
[1730460160958,3.96049,2525.0,2524.6,0.06503484]
[1730460161156,7.921,2525.0,2524.6,0.06503484]
[1730460161363,3.96057,2524.9,2524.6,0.06503484]
[1730460161757,3.96057,2524.9,2524.4,3.96132]
[1730460161954,7.92124,2524.9,2524.4,3.96132]
[1730460162273,3.96057,2524.9,2524.5,0.06507522]
[1730460162563,7.92121,2524.9,2524.5,0.06507522]
[1730460162866,3.96072,2524.8,2524.5,0.06507522]
[1730460163334,7.92127,2524.9,2524.5,0.06507522]
[1730460163867,3.96057,2524.9,2524.5,0.06507522]
[1730460167152,3.96071,2524.8,2524.5,0.06507522]
[1730460167445,7.92122,2524.9,2524.3,7.92285]
[1730460167650,7.92122,2524.9,2524.6,0.06495063]
[1730460167851,3.96057,2524.9,2524.3,7.92285]
[1730460168053,3.96057,2524.9,2524.7,0.06489494]
[1730460168252,3.96041,2525.0,2524.4,3.96118]
[1730460168568,3.96041,2525.0,2524.5,3.9611]